[Event "Titled Tuesday Blitz August 22 Early 2023"]
[White "le-castor-faineant"]
[Black "Begunov, Konstantin"]
[BlackFideId "4118510"]
[WhiteElo "2269"]
[BlackElo "2435"]
[Result "0-1"]
[Round "11"]
[TimeControl "180+1"]
[Date "2023.08.22"]
[WhiteClock "0:00:00"]
[BlackClock "0:00:05"]
[Board "111"]

1. e4 {[%clk 0:03:00]}  c5 {[%clk 0:02:59]} 2. Nf3 {[%clk 0:03:00]}  d6 {[%clk 0:03:00]} 3. d4 {[%clk 0:02:59]}  cxd4 {[%clk 0:03:01]} 4. Nxd4 {[%clk 0:03:00]}  Nf6 {[%clk 0:03:01]} 5. Nc3 {[%clk 0:03:00]}  a6 {[%clk 0:03:02]} 6. Be3 {[%clk 0:02:56]}  Ng4 {[%clk 0:03:01]} 7. Bc1 {[%clk 0:02:56]}  Nc6 {[%clk 0:03:01]} 8. f3 {[%clk 0:02:44]}  Qb6 {[%clk 0:03:01]} 9. Nce2 {[%clk 0:02:34]}  Nge5 {[%clk 0:02:38]} 10. Nxc6 {[%clk 0:02:32]}  Nxc6 {[%clk 0:02:34]} 11. c3 {[%clk 0:02:29]}  g6 {[%clk 0:02:19]} 12. Nf4 {[%clk 0:02:26]}  Bg7 {[%clk 0:02:15]} 13. Nd5 {[%clk 0:02:19]}  Qd8 {[%clk 0:02:14]} 14. Bc4 {[%clk 0:02:16]}  b5 {[%clk 0:02:10]} 15. Bb3 {[%clk 0:02:16]}  Na5 {[%clk 0:02:09]} 16. O-O {[%clk 0:02:14]}  Nxb3 {[%clk 0:02:08]} 17. axb3 {[%clk 0:02:15]}  Bb7 {[%clk 0:02:03]} 18. Be3 {[%clk 0:02:12]}  O-O {[%clk 0:01:59]} 19. Bd4 {[%clk 0:02:07]}  Bxd5 {[%clk 0:01:36]} 20. Bxg7 {[%clk 0:02:06]}  Bxb3 {[%clk 0:01:27]} 21. Qd4 {[%clk 0:02:02]}  e5 {[%clk 0:01:01]} 22. Qb4 {[%clk 0:01:57]}  Qb6+ {[%clk 0:00:50]} 23. Kh1 {[%clk 0:01:55]}  Kxg7 {[%clk 0:00:41]} 24. Qxb3 {[%clk 0:01:55]}  Rfd8 {[%clk 0:00:38]} 25. Rfd1 {[%clk 0:01:56]}  Qc6 {[%clk 0:00:28]} 26. Rd5 {[%clk 0:01:55]}  Rab8 {[%clk 0:00:19]} 27. Qa3 {[%clk 0:01:53]}  Rb6 {[%clk 0:00:18]} 28. Rad1 {[%clk 0:01:50]}  h6 {[%clk 0:00:18]} 29. h3 {[%clk 0:01:48]}  h5 {[%clk 0:00:18]} 30. Kh2 {[%clk 0:01:45]}  h4 {[%clk 0:00:18]} 31. Rxe5 {[%clk 0:01:32]}  dxe5 {[%clk 0:00:17]} 32. Rxd8 {[%clk 0:01:31]}  Qf6 {[%clk 0:00:17]} 33. Qf8+ {[%clk 0:01:31]}  Kh7 {[%clk 0:00:15]} 34. Qg8+ {[%clk 0:01:29]}  Kh6 {[%clk 0:00:16]} 35. Qh8+ {[%clk 0:01:15]}  Qxh8 {[%clk 0:00:16]} 36. Rxh8+ {[%clk 0:01:16]}  Kg5 {[%clk 0:00:16]} 37. Rd8 {[%clk 0:01:15]}  a5 {[%clk 0:00:15]} 38. Rd5 {[%clk 0:01:13]}  f6 {[%clk 0:00:15]} 39. Kg1 {[%clk 0:01:13]}  a4 {[%clk 0:00:14]} 40. Kf2 {[%clk 0:01:14]}  b4 {[%clk 0:00:14]} 41. cxb4 {[%clk 0:01:12]}  Rxb4 {[%clk 0:00:15]} 42. Rd2 {[%clk 0:01:13]}  Rb3 {[%clk 0:00:15]} 43. Rc2 {[%clk 0:01:12]}  Kf4 {[%clk 0:00:15]} 44. Kf1 {[%clk 0:01:08]}  Kg3 {[%clk 0:00:14]} 45. Re2 {[%clk 0:01:04]}  Rd3 {[%clk 0:00:13]} 46. Rc2 {[%clk 0:01:03]}  Rd1+ {[%clk 0:00:12]} 47. Ke2 {[%clk 0:01:04]}  Rg1 {[%clk 0:00:12]} 48. Rc6 {[%clk 0:01:01]}  Rxg2+ {[%clk 0:00:12]} 49. Ke3 {[%clk 0:01:02]}  f5 {[%clk 0:00:07]} 50. Rxg6+ {[%clk 0:01:02]}  Kxh3 {[%clk 0:00:06]} 51. Rxg2 {[%clk 0:00:54]}  Kxg2 {[%clk 0:00:06]} 52. exf5 {[%clk 0:00:55]}  h3 {[%clk 0:00:07]} 53. f6 {[%clk 0:00:56]}  h2 {[%clk 0:00:08]} 54. f7 {[%clk 0:00:57]}  h1=Q {[%clk 0:00:08]} 55. f8=Q {[%clk 0:00:58]}  Qc1+ {[%clk 0:00:08]} 56. Ke4 {[%clk 0:00:57]}  Qxb2 {[%clk 0:00:08]} 57. Qg7+ {[%clk 0:00:55]}  Kf2 {[%clk 0:00:08]} 58. Qa7+ {[%clk 0:00:51]}  Kg2 {[%clk 0:00:07]} 59. Qxa4 {[%clk 0:00:51]}  Qe2+ {[%clk 0:00:06]} 60. Kd5 {[%clk 0:00:50]}  Kxf3 {[%clk 0:00:06]} 61. Qb3+ {[%clk 0:00:42]}  Kg2 {[%clk 0:00:06]} 62. Qc3 {[%clk 0:00:27]}  e4 {[%clk 0:00:05]} 63. Kd4 {[%clk 0:00:25]}  Kf2 {[%clk 0:00:04]} 64. Qc6 {[%clk 0:00:18]}  Qd3+ {[%clk 0:00:02]} 65. Ke5 {[%clk 0:00:18]}  e3 {[%clk 0:00:03]} 66. Qf6+ {[%clk 0:00:17]}  Ke1 {[%clk 0:00:03]} 67. Qh4+ {[%clk 0:00:17]}  Kd2 {[%clk 0:00:02]} 68. Qb4+ {[%clk 0:00:16]}  Ke2 {[%clk 0:00:02]} 69. Qb2+ {[%clk 0:00:12]}  Qd2 {[%clk 0:00:02]} 70. Qb5+ {[%clk 0:00:11]}  Ke1 {[%clk 0:00:03]} 71. Qb1+ {[%clk 0:00:08]}  Kf2 {[%clk 0:00:03]} 72. Qf5+ {[%clk 0:00:08]}  Ke1 {[%clk 0:00:02]} 73. Qb1+ {[%clk 0:00:09]}  Qd1 {[%clk 0:00:03]} 74. Qb4+ {[%clk 0:00:09]}  Kf2 {[%clk 0:00:04]} 75. Qf4+ {[%clk 0:00:08]}  Ke2 {[%clk 0:00:04]} 76. Qg4+ {[%clk 0:00:07]}  Kd2 {[%clk 0:00:05]} 77. Qd4+ {[%clk 0:00:07]}  Ke2 {[%clk 0:00:05]} 78. Qg4+ {[%clk 0:00:07]}  Ke1 {[%clk 0:00:06]} 79. Qg3+ {[%clk 0:00:07]}  Kd2 {[%clk 0:00:05]} 80. Qg2+ {[%clk 0:00:05]}  Qe2 {[%clk 0:00:05]} 81. Qd5+ {[%clk 0:00:05]}  Qd3 {[%clk 0:00:06]} 82. Qa2+ {[%clk 0:00:04]}  Ke1 {[%clk 0:00:06]} 83. Qa1+ {[%clk 0:00:04]}  Kf2 {[%clk 0:00:06]} 84. Qa7 {[%clk 0:00:00]}  Qc3+ {[%clk 0:00:05]} 0-1


[Site "https://www.chess.com"]

[Event "Titled Tuesday Blitz August 22 Early 2023"]
[White "Bueno, Alfeu Junior Varela"]
[Black "Kula, Robert"]
[WhiteFideId "2108879"]
[BlackFideId "1101218"]
[WhiteElo "2427"]
[BlackElo "2163"]
[Result "0-1"]
[Round "11"]
[TimeControl "180+1"]
[Date "2023.08.22"]
[WhiteClock "0:00:07"]
[BlackClock "0:01:17"]
[Board "113"]

1. e4 {[%clk 0:01:28]}  e5 {[%clk 0:02:55]} 2. Nc3 {[%clk 0:01:28]}  Nc6 {[%clk 0:02:55]} 3. Bc4 {[%clk 0:01:27]}  Nf6 {[%clk 0:02:54]} 4. d3 {[%clk 0:01:27]}  Be7 {[%clk 0:02:54]} 5. f4 {[%clk 0:01:27]}  O-O {[%clk 0:02:54]} 6. Nf3 {[%clk 0:01:27]}  d6 {[%clk 0:02:50]} 7. O-O {[%clk 0:01:27]}  Be6 {[%clk 0:02:50]} 8. Bxe6 {[%clk 0:01:26]}  fxe6 {[%clk 0:02:50]} 9. fxe5 {[%clk 0:01:27]}  Nxe5 {[%clk 0:02:44]} 10. Nxe5 {[%clk 0:01:27]}  dxe5 {[%clk 0:02:44]} 11. Be3 {[%clk 0:01:26]}  Qe8 {[%clk 0:02:40]} 12. Qf3 {[%clk 0:01:01]}  a6 {[%clk 0:02:33]} 13. Qg3 {[%clk 0:00:57]}  Qh5 {[%clk 0:02:21]} 14. Rf3 {[%clk 0:00:51]}  Ng4 {[%clk 0:02:19]} 15. Rxf8+ {[%clk 0:00:36]}  Rxf8 {[%clk 0:02:17]} 16. h3 {[%clk 0:00:31]}  Nxe3 {[%clk 0:02:06]} 17. Qxe3 {[%clk 0:00:32]}  b6 {[%clk 0:02:06]} 18. Kh1 {[%clk 0:00:29]}  Bg5 {[%clk 0:02:03]} 19. Qg3 {[%clk 0:00:19]}  Bh4 {[%clk 0:01:58]} 20. Qg4 {[%clk 0:00:19]}  Qxg4 {[%clk 0:01:57]} 21. hxg4 {[%clk 0:00:20]}  Rf2 {[%clk 0:01:57]} 22. Re1 {[%clk 0:00:16]}  Rxc2 {[%clk 0:01:55]} 23. Re2 {[%clk 0:00:17]}  Rc1+ {[%clk 0:01:51]} 24. Kh2 {[%clk 0:00:17]}  Be7 {[%clk 0:01:35]} 25. Kg3 {[%clk 0:00:16]}  Kf7 {[%clk 0:01:34]} 26. Rf2+ {[%clk 0:00:14]}  Kg6 {[%clk 0:01:34]} 27. Re2 {[%clk 0:00:12]}  Rh1 {[%clk 0:01:33]} 28. Kf2 {[%clk 0:00:11]}  Kg5 {[%clk 0:01:31]} 29. Kg3 {[%clk 0:00:11]}  Rh4 {[%clk 0:01:26]} 30. Nd1 {[%clk 0:00:09]}  Rxg4+ {[%clk 0:01:26]} 31. Kf3 {[%clk 0:00:10]}  Rf4+ {[%clk 0:01:22]} 32. Ke3 {[%clk 0:00:09]}  Rf1 {[%clk 0:01:21]} 33. Nf2 {[%clk 0:00:09]}  Kg6 {[%clk 0:01:19]} 34. Ng4 {[%clk 0:00:07]}  Bg5# {[%clk 0:01:17]} 0-1


[Site "https://www.chess.com"]

[Event "Titled Tuesday Blitz August 22 Early 2023"]
[White "Ovezdurdyyeva, Jemal"]
[Black "Kozin, Yuri"]
[WhiteFideId "14001888"]
[BlackFideId "4129920"]
[WhiteElo "2378"]
[BlackElo "2540"]
[Result "0-1"]
[Round "11"]
[TimeControl "180+1"]
[Date "2023.08.22"]
[WhiteClock "0:00:00"]
[BlackClock "0:00:05"]
[Board "114"]

1. e4 {[%clk 0:03:00]}  c5 {[%clk 0:02:59]} 2. Nf3 {[%clk 0:03:00]}  e6 {[%clk 0:03:00]} 3. c3 {[%clk 0:02:49]}  Nf6 {[%clk 0:02:57]} 4. Bd3 {[%clk 0:02:46]}  Nc6 {[%clk 0:02:56]} 5. O-O {[%clk 0:02:46]}  d5 {[%clk 0:02:56]} 6. exd5 {[%clk 0:02:44]}  Qxd5 {[%clk 0:02:54]} 7. Bc2 {[%clk 0:02:44]}  Be7 {[%clk 0:02:52]} 8. d4 {[%clk 0:02:42]}  cxd4 {[%clk 0:02:52]} 9. cxd4 {[%clk 0:02:42]}  O-O {[%clk 0:02:52]} 10. Nc3 {[%clk 0:02:42]}  Qh5 {[%clk 0:02:49]} 11. a3 {[%clk 0:02:41]}  Rd8 {[%clk 0:02:47]} 12. h3 {[%clk 0:02:33]}  b6 {[%clk 0:02:45]} 13. Be3 {[%clk 0:02:30]}  Bb7 {[%clk 0:02:44]} 14. Qe2 {[%clk 0:02:30]}  Rac8 {[%clk 0:02:39]} 15. Rfd1 {[%clk 0:02:28]}  Na5 {[%clk 0:02:39]} 16. Rac1 {[%clk 0:01:59]}  Nc4 {[%clk 0:02:33]} 17. Bd3 {[%clk 0:01:58]}  Nxe3 {[%clk 0:02:26]} 18. fxe3 {[%clk 0:01:57]}  Bd6 {[%clk 0:02:12]} 19. e4 {[%clk 0:01:55]}  Bf4 {[%clk 0:02:10]} 20. Rc2 {[%clk 0:01:54]}  Bb8 {[%clk 0:01:51]} 21. Rf1 {[%clk 0:01:23]}  Qh6 {[%clk 0:01:45]} 22. Qf2 {[%clk 0:01:11]}  Qf4 {[%clk 0:01:44]} 23. Ne2 {[%clk 0:01:03]}  Rxc2 {[%clk 0:01:30]} 24. Bxc2 {[%clk 0:01:00]}  Nxe4 {[%clk 0:01:16]} 25. Bxe4 {[%clk 0:00:52]}  Qxe4 {[%clk 0:01:15]} 26. Ng5 {[%clk 0:00:53]}  Qg6 {[%clk 0:01:06]} 27. Nxf7 {[%clk 0:00:50]}  Re8 {[%clk 0:01:00]} 28. Ne5 {[%clk 0:00:46]}  Bxe5 {[%clk 0:00:58]} 29. dxe5 {[%clk 0:00:47]}  h6 {[%clk 0:00:58]} 30. Ng3 {[%clk 0:00:32]}  Rc8 {[%clk 0:00:53]} 31. Qf4 {[%clk 0:00:30]}  Rc2 {[%clk 0:00:50]} 32. Rf2 {[%clk 0:00:22]}  Kh7 {[%clk 0:00:45]} 33. h4 {[%clk 0:00:13]}  Rxf2 {[%clk 0:00:41]} 34. Qxf2 {[%clk 0:00:12]}  Qg4 {[%clk 0:00:34]} 35. h5 {[%clk 0:00:12]}  Qd1+ {[%clk 0:00:33]} 36. Kh2 {[%clk 0:00:12]}  Qd5 {[%clk 0:00:27]} 37. Qc2+ {[%clk 0:00:12]}  Kg8 {[%clk 0:00:27]} 38. Qe2 {[%clk 0:00:11]}  a6 {[%clk 0:00:26]} 39. Nf1 {[%clk 0:00:09]}  b5 {[%clk 0:00:21]} 40. Nd2 {[%clk 0:00:07]}  Qd4 {[%clk 0:00:15]} 41. Nf3 {[%clk 0:00:05]}  Qf4+ {[%clk 0:00:15]} 42. Kg1 {[%clk 0:00:05]}  Bxf3 {[%clk 0:00:14]} 43. Qxf3 {[%clk 0:00:05]}  Qxe5 {[%clk 0:00:14]} 44. Qa8+ {[%clk 0:00:05]}  Kh7 {[%clk 0:00:13]} 45. Qxa6 {[%clk 0:00:06]}  Qe1+ {[%clk 0:00:13]} 46. Kh2 {[%clk 0:00:06]}  Qh4+ {[%clk 0:00:14]} 47. Kg1 {[%clk 0:00:06]}  Qxh5 {[%clk 0:00:14]} 48. Qxe6 {[%clk 0:00:06]}  Qd1+ {[%clk 0:00:13]} 49. Kh2 {[%clk 0:00:06]}  Qh5+ {[%clk 0:00:13]} 50. Kg1 {[%clk 0:00:07]}  Qd1+ {[%clk 0:00:08]} 51. Kh2 {[%clk 0:00:07]}  Qd3 {[%clk 0:00:08]} 52. Qe5 {[%clk 0:00:05]}  Qc4 {[%clk 0:00:05]} 53. Kg3 {[%clk 0:00:04]}  Kg8 {[%clk 0:00:03]} 54. Kf3 {[%clk 0:00:04]}  Qb3+ {[%clk 0:00:04]} 55. Kf2 {[%clk 0:00:03]}  Kf7 {[%clk 0:00:04]} 56. Qf5+ {[%clk 0:00:03]}  Kg8 {[%clk 0:00:04]} 57. Qc8+ {[%clk 0:00:04]}  Kh7 {[%clk 0:00:04]} 58. Qf5+ {[%clk 0:00:04]}  g6 {[%clk 0:00:04]} 59. Qd7+ {[%clk 0:00:04]}  Kg8 {[%clk 0:00:04]} 60. Qe8+ {[%clk 0:00:04]}  Kg7 {[%clk 0:00:05]} 61. Qe5+ {[%clk 0:00:05]}  Kf7 {[%clk 0:00:05]} 62. Ke2 {[%clk 0:00:05]}  h5 {[%clk 0:00:05]} 63. Qf4+ {[%clk 0:00:05]}  Kg7 {[%clk 0:00:05]} 64. Qd4+ {[%clk 0:00:06]}  Kh6 {[%clk 0:00:05]} 65. Qd2+ {[%clk 0:00:06]}  Kh7 {[%clk 0:00:05]} 66. Qd4 {[%clk 0:00:05]}  Qc2+ {[%clk 0:00:04]} 67. Kf3 {[%clk 0:00:05]}  Qf5+ {[%clk 0:00:05]} 68. Kg3 {[%clk 0:00:05]}  Qg5+ {[%clk 0:00:05]} 69. Kf3 {[%clk 0:00:05]}  Qf5+ {[%clk 0:00:06]} 70. Ke2 {[%clk 0:00:05]}  Kh6 {[%clk 0:00:06]} 71. Qe3+ {[%clk 0:00:05]}  g5 {[%clk 0:00:06]} 72. Qf3 {[%clk 0:00:02]}  Qe5+ {[%clk 0:00:06]} 73. Kd3 {[%clk 0:00:01]}  Qxb2 {[%clk 0:00:05]} 74. Qf8+ {[%clk 0:00:00]}  Kh7 {[%clk 0:00:05]} 0-1


[Site "https://www.chess.com"]

[Event "Titled Tuesday Blitz August 22 Early 2023"]
[White "Tanwir, Furqan"]
[Black "Bilan, Danila"]
[WhiteFideId "2023962"]
[BlackFideId "24161918"]
[WhiteElo "2368"]
[BlackElo "2494"]
[Result "1-0"]
[Round "11"]
[TimeControl "180+1"]
[Date "2023.08.22"]
[WhiteClock "0:01:36"]
[BlackClock "0:00:11"]
[Board "115"]

1. e4 {[%clk 0:03:00]}  c6 {[%clk 0:02:14]} 2. d4 {[%clk 0:02:58]}  d5 {[%clk 0:02:14]} 3. Nc3 {[%clk 0:02:58]}  b5 {[%clk 0:02:13]} 4. e5 {[%clk 0:02:57]}  Bf5 {[%clk 0:02:10]} 5. Bd3 {[%clk 0:02:55]}  Bg6 {[%clk 0:02:08]} 6. e6 {[%clk 0:02:54]}  Nf6 {[%clk 0:01:59]} 7. Bf4 {[%clk 0:02:47]}  Bxd3 {[%clk 0:01:52]} 8. exf7+ {[%clk 0:02:45]}  Kxf7 {[%clk 0:01:51]} 9. cxd3 {[%clk 0:02:43]}  Nbd7 {[%clk 0:01:43]} 10. Nf3 {[%clk 0:02:42]}  h6 {[%clk 0:01:43]} 11. Rc1 {[%clk 0:02:39]}  e6 {[%clk 0:01:42]} 12. O-O {[%clk 0:02:39]}  Bb4 {[%clk 0:01:38]} 13. Re1 {[%clk 0:02:38]}  Re8 {[%clk 0:01:38]} 14. a3 {[%clk 0:02:36]}  Ba5 {[%clk 0:01:37]} 15. Ne5+ {[%clk 0:02:28]}  Nxe5 {[%clk 0:01:37]} 16. dxe5 {[%clk 0:02:28]}  Nd7 {[%clk 0:01:33]} 17. Qh5+ {[%clk 0:02:27]}  g6 {[%clk 0:01:28]} 18. Qxh6 {[%clk 0:02:26]}  Rh8 {[%clk 0:01:27]} 19. Qg5 {[%clk 0:02:25]}  Qxg5 {[%clk 0:01:27]} 20. Bxg5 {[%clk 0:02:26]}  Rac8 {[%clk 0:01:01]} 21. d4 {[%clk 0:02:21]}  Nb6 {[%clk 0:00:58]} 22. b4 {[%clk 0:02:20]}  Nc4 {[%clk 0:00:58]} 23. bxa5 {[%clk 0:02:19]}  Nxa5 {[%clk 0:00:58]} 24. Bf6 {[%clk 0:02:18]}  Rhe8 {[%clk 0:00:55]} 25. Na2 {[%clk 0:02:12]}  Nb3 {[%clk 0:00:54]} 26. Rcd1 {[%clk 0:02:11]}  a5 {[%clk 0:00:54]} 27. Re3 {[%clk 0:02:10]}  a4 {[%clk 0:00:54]} 28. Nb4 {[%clk 0:02:09]}  c5 {[%clk 0:00:53]} 29. dxc5 {[%clk 0:02:08]}  Rxc5 {[%clk 0:00:54]} 30. h4 {[%clk 0:02:07]}  Rec8 {[%clk 0:00:52]} 31. Rf3 {[%clk 0:02:06]}  Kg8 {[%clk 0:00:47]} 32. g4 {[%clk 0:02:02]}  Rc1 {[%clk 0:00:35]} 33. Rxc1 {[%clk 0:02:01]}  Rxc1+ {[%clk 0:00:35]} 34. Kg2 {[%clk 0:02:00]}  Nc5 {[%clk 0:00:32]} 35. h5 {[%clk 0:01:57]}  Kh7 {[%clk 0:00:28]} 36. hxg6+ {[%clk 0:01:55]}  Kxg6 {[%clk 0:00:28]} 37. g5 {[%clk 0:01:54]}  Ne4 {[%clk 0:00:28]} 38. Nd3 {[%clk 0:01:50]}  Ra1 {[%clk 0:00:24]} 39. Nf4+ {[%clk 0:01:50]}  Kf7 {[%clk 0:00:18]} 40. g6+ {[%clk 0:01:43]}  Kg8 {[%clk 0:00:18]} 41. Nxe6 {[%clk 0:01:43]}  b4 {[%clk 0:00:17]} 42. axb4 {[%clk 0:01:40]}  a3 {[%clk 0:00:11]} 43. Rh3 {[%clk 0:01:36]} 1-0


[Site "https://www.chess.com"]

[Event "Titled Tuesday Blitz August 22 Early 2023"]
[White "Goffredo_Fofi"]
[Black "Petrova, Irina"]
[BlackFideId "14124122"]
[WhiteElo "2478"]
[BlackElo "2355"]
[Result "1-0"]
[Round "11"]
[TimeControl "180+1"]
[Date "2023.08.22"]
[WhiteClock "0:00:10"]
[BlackClock "0:00:48"]
[Board "118"]

1. d4 {[%clk 0:03:00]}  d6 {[%clk 0:03:00]} 2. Nf3 {[%clk 0:02:58]}  g6 {[%clk 0:02:59]} 3. c4 {[%clk 0:02:59]}  Bg7 {[%clk 0:02:58]} 4. Nc3 {[%clk 0:02:59]}  Nc6 {[%clk 0:02:57]} 5. d5 {[%clk 0:02:57]}  Ne5 {[%clk 0:02:56]} 6. Nxe5 {[%clk 0:02:56]}  Bxe5 {[%clk 0:02:57]} 7. e4 {[%clk 0:02:56]}  Nf6 {[%clk 0:02:57]} 8. Bd3 {[%clk 0:02:55]}  O-O {[%clk 0:02:56]} 9. Bd2 {[%clk 0:02:53]}  c6 {[%clk 0:02:56]} 10. O-O {[%clk 0:02:49]}  cxd5 {[%clk 0:02:55]} 11. exd5 {[%clk 0:02:46]}  a6 {[%clk 0:02:52]} 12. h3 {[%clk 0:02:44]}  b5 {[%clk 0:02:48]} 13. cxb5 {[%clk 0:02:41]}  axb5 {[%clk 0:02:49]} 14. Bxb5 {[%clk 0:02:39]}  Bb7 {[%clk 0:02:49]} 15. Bh6 {[%clk 0:02:27]}  Qb6 {[%clk 0:02:35]} 16. Bxf8 {[%clk 0:02:22]}  Rxf8 {[%clk 0:02:35]} 17. a4 {[%clk 0:02:11]}  Rc8 {[%clk 0:02:25]} 18. Rc1 {[%clk 0:02:01]}  Qa5 {[%clk 0:02:20]} 19. Re1 {[%clk 0:01:29]}  Qa8 {[%clk 0:02:12]} 20. Qd2 {[%clk 0:00:59]}  Nxd5 {[%clk 0:02:08]} 21. Nxd5 {[%clk 0:00:58]}  Bxd5 {[%clk 0:02:09]} 22. Rxc8+ {[%clk 0:00:58]}  Qxc8 {[%clk 0:02:06]} 23. Qxd5 {[%clk 0:00:57]}  Bxb2 {[%clk 0:02:04]} 24. Bc4 {[%clk 0:00:53]}  e6 {[%clk 0:02:01]} 25. Qb5 {[%clk 0:00:50]}  Bc3 {[%clk 0:01:58]} 26. Rb1 {[%clk 0:00:46]}  Kg7 {[%clk 0:01:56]} 27. a5 {[%clk 0:00:43]}  Bd4 {[%clk 0:01:53]} 28. a6 {[%clk 0:00:40]}  Qd8 {[%clk 0:01:48]} 29. Bxe6 {[%clk 0:00:21]}  fxe6 {[%clk 0:01:44]} 30. Qb7+ {[%clk 0:00:21]}  Kh6 {[%clk 0:01:44]} 31. a7 {[%clk 0:00:21]}  Qf6 {[%clk 0:01:22]} 32. a8=Q {[%clk 0:00:20]}  Qxf2+ {[%clk 0:01:22]} 33. Kh1 {[%clk 0:00:21]}  Be5 {[%clk 0:01:16]} 34. Qf3 {[%clk 0:00:17]}  Qc2 {[%clk 0:01:11]} 35. Qaf8+ {[%clk 0:00:15]}  Bg7 {[%clk 0:01:11]} 36. Q8f4+ {[%clk 0:00:14]}  g5 {[%clk 0:01:10]} 37. Qc1 {[%clk 0:00:13]}  Qg6 {[%clk 0:01:05]} 38. Qcd1 {[%clk 0:00:11]}  d5 {[%clk 0:01:03]} 39. Rb6 {[%clk 0:00:11]}  d4 {[%clk 0:00:53]} 40. Rxe6 {[%clk 0:00:10]}  g4 {[%clk 0:00:50]} 41. Rxg6+ {[%clk 0:00:10]}  hxg6 {[%clk 0:00:48]} 42. Qxg4 {[%clk 0:00:10]} 1-0


[Site "https://www.chess.com"]

[Event "Titled Tuesday Blitz August 22 Early 2023"]
[White "Gogolev, Artem"]
[Black "Battlecruiser_Operational"]
[WhiteFideId "4116615"]
[WhiteElo "2475"]
[BlackElo "2338"]
[Result "0-1"]
[Round "11"]
[TimeControl "180+1"]
[Date "2023.08.22"]
[WhiteClock "0:00:02"]
[BlackClock "0:00:16"]
[Board "119"]

1. d4 {[%clk 0:03:00]}  e6 {[%clk 0:02:55]} 2. c4 {[%clk 0:02:59]}  f5 {[%clk 0:02:53]} 3. g3 {[%clk 0:02:53]}  Nf6 {[%clk 0:02:50]} 4. Bg2 {[%clk 0:02:53]}  Be7 {[%clk 0:02:50]} 5. Nf3 {[%clk 0:02:40]}  O-O {[%clk 0:02:49]} 6. O-O {[%clk 0:02:26]}  Ne4 {[%clk 0:02:48]} 7. d5 {[%clk 0:02:08]}  Bf6 {[%clk 0:02:45]} 8. Nd4 {[%clk 0:01:43]}  c5 {[%clk 0:02:30]} 9. Nb3 {[%clk 0:01:26]}  d6 {[%clk 0:02:19]} 10. N1d2 {[%clk 0:01:14]}  exd5 {[%clk 0:02:13]} 11. cxd5 {[%clk 0:01:13]}  Nxd2 {[%clk 0:02:10]} 12. Nxd2 {[%clk 0:01:12]}  b5 {[%clk 0:02:09]} 13. a4 {[%clk 0:01:12]}  b4 {[%clk 0:02:03]} 14. Nc4 {[%clk 0:01:01]}  Na6 {[%clk 0:01:48]} 15. Bf4 {[%clk 0:00:58]}  Be7 {[%clk 0:01:47]} 16. e4 {[%clk 0:00:46]}  fxe4 {[%clk 0:01:29]} 17. Bxe4 {[%clk 0:00:42]}  Bf5 {[%clk 0:01:16]} 18. Qd3 {[%clk 0:00:34]}  Bxe4 {[%clk 0:01:00]} 19. Qxe4 {[%clk 0:00:34]}  Nc7 {[%clk 0:01:00]} 20. Rfe1 {[%clk 0:00:28]}  Rf7 {[%clk 0:01:00]} 21. Na5 {[%clk 0:00:26]}  Qd7 {[%clk 0:01:00]} 22. Nc6 {[%clk 0:00:20]}  Bf6 {[%clk 0:00:49]} 23. Rab1 {[%clk 0:00:19]}  Raf8 {[%clk 0:00:48]} 24. b3 {[%clk 0:00:17]}  a6 {[%clk 0:00:45]} 25. a5 {[%clk 0:00:17]}  Nb5 {[%clk 0:00:43]} 26. Qe6 {[%clk 0:00:17]}  Qc7 {[%clk 0:00:40]} 27. Rbd1 {[%clk 0:00:13]}  Bc3 {[%clk 0:00:33]} 28. Re4 {[%clk 0:00:12]}  h6 {[%clk 0:00:25]} 29. Rd3 {[%clk 0:00:11]}  Bf6 {[%clk 0:00:20]} 30. Rf3 {[%clk 0:00:11]}  Kh7 {[%clk 0:00:18]} 31. Bd2 {[%clk 0:00:09]}  Nd4 {[%clk 0:00:13]} 32. Nxd4 {[%clk 0:00:09]}  Bxd4 {[%clk 0:00:14]} 33. Rxf7 {[%clk 0:00:09]}  Qxf7 {[%clk 0:00:14]} 34. Bf4 {[%clk 0:00:08]}  Qxe6 {[%clk 0:00:13]} 35. dxe6 {[%clk 0:00:08]}  d5 {[%clk 0:00:14]} 36. Re2 {[%clk 0:00:08]}  Re8 {[%clk 0:00:14]} 37. e7 {[%clk 0:00:08]}  Kg6 {[%clk 0:00:15]} 38. Bd6 {[%clk 0:00:08]}  Kf7 {[%clk 0:00:15]} 39. Kg2 {[%clk 0:00:08]}  c4 {[%clk 0:00:15]} 40. bxc4 {[%clk 0:00:07]}  b3 {[%clk 0:00:15]} 41. Bb4 {[%clk 0:00:08]}  dxc4 {[%clk 0:00:15]} 42. Re4 {[%clk 0:00:07]}  b2 {[%clk 0:00:15]} 43. Re1 {[%clk 0:00:07]}  c3 {[%clk 0:00:15]} 44. Bxc3 {[%clk 0:00:07]}  Bxc3 {[%clk 0:00:15]} 45. Kf3 {[%clk 0:00:02]}  Rxe7 {[%clk 0:00:16]} 0-1


[Site "https://www.chess.com"]

[Event "Titled Tuesday Blitz August 22 Early 2023"]
[White "Bazilius, Augustinas"]
[Black "Kaganskiy, Gleb"]
[WhiteFideId "12832251"]
[BlackFideId "4132025"]
[WhiteElo "2457"]
[BlackElo "2324"]
[Result "0-1"]
[Round "11"]
[TimeControl "180+1"]
[Date "2023.08.22"]
[WhiteClock "0:00:02"]
[BlackClock "0:00:23"]
[Board "120"]

1. d4 {[%clk 0:03:00]}  d5 {[%clk 0:02:59]} 2. c4 {[%clk 0:03:01]}  e6 {[%clk 0:03:00]} 3. Nf3 {[%clk 0:03:01]}  Nf6 {[%clk 0:03:00]} 4. g3 {[%clk 0:03:01]}  Be7 {[%clk 0:02:57]} 5. Bg2 {[%clk 0:03:01]}  O-O {[%clk 0:02:58]} 6. O-O {[%clk 0:03:01]}  dxc4 {[%clk 0:02:58]} 7. Ne5 {[%clk 0:03:02]}  Nc6 {[%clk 0:02:58]} 8. Bxc6 {[%clk 0:03:02]}  bxc6 {[%clk 0:02:57]} 9. Nxc6 {[%clk 0:03:03]}  Qe8 {[%clk 0:02:58]} 10. Nxe7+ {[%clk 0:03:03]}  Qxe7 {[%clk 0:02:59]} 11. Qa4 {[%clk 0:03:04]}  e5 {[%clk 0:02:56]} 12. dxe5 {[%clk 0:03:04]}  Qxe5 {[%clk 0:02:55]} 13. Qxc4 {[%clk 0:02:59]}  Qh5 {[%clk 0:02:55]} 14. f3 {[%clk 0:02:41]}  Be6 {[%clk 0:02:53]} 15. Qc2 {[%clk 0:02:34]}  Nd5 {[%clk 0:02:46]} 16. Nc3 {[%clk 0:02:23]}  Rfe8 {[%clk 0:02:35]} 17. Nxd5 {[%clk 0:02:17]}  Bxd5 {[%clk 0:02:35]} 18. e4 {[%clk 0:02:16]}  Bb7 {[%clk 0:02:15]} 19. Bf4 {[%clk 0:01:57]}  Ba6 {[%clk 0:02:06]} 20. Rf2 {[%clk 0:01:50]}  Red8 {[%clk 0:02:04]} 21. Rd1 {[%clk 0:01:43]}  Rxd1+ {[%clk 0:01:59]} 22. Qxd1 {[%clk 0:01:44]}  Qa5 {[%clk 0:01:51]} 23. a3 {[%clk 0:01:18]}  h6 {[%clk 0:01:50]} 24. Rc2 {[%clk 0:00:58]}  c5 {[%clk 0:01:43]} 25. Qd2 {[%clk 0:00:50]}  Qb5 {[%clk 0:01:40]} 26. Qf2 {[%clk 0:00:43]}  Rd8 {[%clk 0:01:39]} 27. Rxc5 {[%clk 0:00:27]}  Rd1+ {[%clk 0:01:32]} 28. Kg2 {[%clk 0:00:27]}  Qd7 {[%clk 0:01:10]} 29. g4 {[%clk 0:00:13]}  h5 {[%clk 0:01:11]} 30. Rxh5 {[%clk 0:00:08]}  Rf1 {[%clk 0:00:54]} 31. Qh4 {[%clk 0:00:01]}  Rg1+ {[%clk 0:00:41]} 32. Kxg1 {[%clk 0:00:02]}  Qd1+ {[%clk 0:00:40]} 33. Kf2 {[%clk 0:00:01]}  Qe2+ {[%clk 0:00:34]} 34. Kg3 {[%clk 0:00:02]}  Qe1+ {[%clk 0:00:32]} 35. Kg2 {[%clk 0:00:02]}  Qf1+ {[%clk 0:00:26]} 36. Kg3 {[%clk 0:00:02]}  Qg1+ {[%clk 0:00:24]} 37. Kh3 {[%clk 0:00:02]}  Bf1# {[%clk 0:00:23]} 0-1


[Site "https://www.chess.com"]